Cogmind - Beta 17 @@@ ROGUE MODE // 2026.08.09 @ 14:48:24 Player: CONM Result: Destroyed by XE-VBZ(R) with Subdweller Beam Cannon Performance ------------- Evolutions (0) 0 Regions Visited (2) 400 Robots Destroyed (26) 130 Value Destroyed (704) 704 Prototype IDs (0) 0 Alien Tech Used (0) 0 Bonus (0) 0 TOTAL SCORE: 1234 Bonus ------- None Cogmind --------- Core Integrity 0/250 Matter 0/300 Energy 98/100 System Corruption 0% Temperature Cool (9) Movement Core (50) Location -10/Subcaves Parts ------- > --- POWER (1) -------- (None) > --- PROPULSION (2) --- (None) > --- UTILITY (2) ------ (None) > --- WEAPON (2) ------- (None) > --- INVENTORY (5) ---- Ion Engine Light Ion Engine Heat Sink Heat Sink Hammer Peak State ------------ > --- POWER ------------ (None) > --- PROPULSION ------- Spiked Treads > --- UTILITY ---------- Large Storage Unit Makeshift Light Armor Plating > --- WEAPON ----------- Assault Rifle Battle Cannon > --- INVENTORY -------- Ion Engine Light Ion Engine Light Ion Engine Light Ion Engine Light Nuclear Core Heat Sink Heat Sink Small Storage Unit Medium Storage Unit Structural Scanner Visual Processing Unit Visual Processing Unit Hammer [Rating: 11] Favorites ----------- Power Light Ion Engine Engine Light Ion Engine Propulsion Light Treads Treads Light Treads Wheel Wheel Utility Large Storage Unit Device Seismic Detector Storage Large Storage Unit Processor Signal Interpreter Protection Makeshift Light Armor Plating Weapon Assault Rifle Ballistic Gun Assault Rifle Ballistic Cannon Battle Cannon Launcher Grenade Launcher Impact Weapon Hammer Build | -11 -10 -10 ------- Run | Yrd Mat Sub Slots Evolved . | . . . Power . | . . . Propulsion . | . . . Utility . | . . . Weapon . | . . . Parts Attached 20 | 9 7 4 Power 2 | 1 1 . Engine 2 | 1 1 . Core . | . . . Reactor . | . . . Propulsion 5 | 4 . 1 Treads 3 | 2 . 1 Leg . | . . . Wheel 2 | 2 . . Hover . | . . . Flight . | . . . Utility 7 | 2 4 1 Device 2 | 1 1 . Storage 2 | 1 1 . Processor 2 | . 2 . Hackware . | . . . Protection 1 | . . 1 Artifact . | . . . Weapon 6 | 2 2 2 Energy Gun . | . . . Energy Cannon . | . . . Ballistic Gun 3 | 2 1 . Ballistic Cannon 1 | . . 1 Launcher 1 | . . 1 Special Weapon . | . . . Impact Weapon 1 | . 1 . Slashing Weapon . | . . . Piercing Weapon . | . . . Special Melee Weapon . | . . . Unidentified Prototypes . | . . . Parts Lost 9 | . 5 4 Power 1 | . 1 . Propulsion 4 | . 2 2 Utility 1 | . 1 . Weapon 3 | . 1 2 Highest Loss Streak 4 | . 2 4 To Critical Strikes . | . . . Average Backups 11 | 2 11 13 Power 3 | 1 3 4 Propulsion 1 | 1 1 . Utility 5 | . 5 6 Weapon 1 | . 1 1 Tool/Special . | . . . Unused Backups 9 | . . 9 Power 4 | . . 4 Propulsion . | . . . Utility 5 | . . 5 Weapon . | . . . Tool/Special . | . . . Average Slot Usage (%) 81 | . 90 67 Engine 7 | . 12 . Treads 14 | . 16 10 Wheel 4 | . 5 2 Device 4 | . 7 . Storage 13 | . 14 13 Processor 6 | . 5 8 Protection 2 | . . 5 Ballistic Gun 20 | . 25 13 Ballistic Cannon 4 | . . 10 Impact Weapon 1 | . 1 1 Peak Build Rating 11 | 7 8 11 Average Rating 7 | 5 7 8 On Entrance 4 | . 7 6 Avg Prop Armor Cover (%) . | . . . Naked Turns 23 | . . 23 Heaviest Build 30 | 13 30 29 Greatest Support 40 | 40 40 20 Greatest Overweight (x) 7 | . 2 7 Average Overweight (x) . | . 1 1 Largest Inventory Capacity 15 | 8 15 15 Average Capacity 13 | 7 13 14 Most Carried 15 | 4 15 15 Average Carried 11 | 3 11 13 Final Capacity 15 | 8 15 5 Final Carried 15 | 4 15 5 Class Distribution -------------------- 100% | Mutant Dominant Class ---------------- Mutant | -10/Materials Mutant | -10/Subcaves Resources | -11 -10 -10 ----------- Run | Yrd Mat Sub Matter Collected 773 | 254 474 45 Remotely . | . . . Salvage Created 781 | 79 646 56 Parts 49 | 3 41 5 Haulers Intercepted . | . . . Recyclers Shooed . | . . . Parts Field Recycled . | . . . Retrieved Matter . | . . . Parts Self-Destructed 11 | . . 11 Prevented . | . . . Parts Restored . | . . . Kills | -11 -10 -10 ------- Run | Yrd Mat Sub Combat Hostiles Destroyed 19 | . 16 3 Guns 17 | . 16 1 Cannons 1 | . . 1 AOE 1 | . . 1 Classes Destroyed 6 | 1 4 1 Tunneler 4 | 4 . . Operator 1 | . 1 . Watcher 2 | . 2 . Swarmer 3 | . 3 . Grunt 13 | . 13 . Subdweller 3 | . . 3 Best Kill Streak 3 | 2 3 1 Combat Bots Only 3 | . 3 1 Max Kills in Single Turn 2 | 1 2 1 Gunslinging 1 | . 1 . Exploded 1 | . . 1 Melee . | . . . Uniques/NPCs Destroyed . | . . . Combat | -11 -10 -10 -------- Run | Yrd Mat Sub Hostile Shots Fired 150 | . 114 36 Missed 51 | . 33 18 Hits 99 | . 81 18 Projectile 99 | . 81 18 Damage Taken 1257 | . 873 384 Core 273 | . 183 90 Absorbed by Shields . | . . . Core Remaining (%) 100 | 100 . . Volleys Fired 108 | 7 76 25 Largest 2 | 2 2 2 Hottest 53 | 40 40 53 Shots Fired 202 | 14 141 47 Gun 181 | 14 141 26 Cannon 17 | . . 17 Launcher 4 | . . 4 Special . | . . . Kinetic 198 | 14 141 43 Thermal . | . . . Explosive 4 | . . 4 Electromagnetic . | . . . Robot Hit Streak 18 | 2 13 18 Robot Miss Streak 4 | 1 4 4 Penetration Max . | . . . Secondary Targets 3 | . 3 . Max Gunslinging Chain 1 | . 1 . Shots Hit Robots 123 | 8 96 19 Core Hits 47 | 4 35 8 Critical Kills 1 | . 1 . Critical Parts Destroyed 1 | . 1 . Critical Strikes 3 | . 2 1 Destroy 2 | . 2 . Blast 1 | . . 1 Melee Attacks 3 | . 3 . Impact 3 | . 3 . Slashing . | . . . Piercing . | . . . Sneak Attacks . | . . . Combat Hostiles . | . . . Follow-up Attacks . | . . . Damage Inflicted 1705 | 119 1236 350 Guns 1505 | 119 1236 150 Cannons 69 | . . 69 Explosions 131 | . . 131 Melee . | . . . Ramming . | . . . Kinetic 1574 | 119 1236 219 Thermal . | . . . Explosive 131 | . . 131 Electromagnetic . | . . . Impact . | . . . Slashing . | . . . Piercing . | . . . Highest Corruption . | . . . Average Corruption . | . . . Corruption Purged . | . . . Corruption Blocked . | . . . Overload Shots . | . . . Overflow Damage . | . . . Projectiles . | . . . Explosions . | . . . Melee . | . . . Knockbacks 1 | . . 1 Impact . | . . . Kinetic 1 | . . 1 Secondary . | . . . Self-Inflicted Damage . | . . . Shots . | . . . Rammed . | . . . Targets Rammed . | . . . Kicked . | . . . Crushed . | . . . Highest Temperature 5 | . 5 . Average Temperature 2 | . 2 . Received Heat Transfer 396 | . 369 27 Siege Activations . | . . . Martial Activations . | . . . Shielding Activations . | . . . Robots Disrupted . | . . . Combat Hostiles . | . . . Robots Corrupted . | . . . Combat Hostiles . | . . . Parts Fried . | . . . Impact Corruptions . | . . . Robots Melted . | . . . Combat Hostiles . | . . . Parts Melted . | . . . Heat Transferred . | . . . Parts Sabotaged . | . . . Parts Stolen . | . . . Parts Stripped . | . . . Power Chain Reactions . | . . . Alert | -11 -10 -10 ------- Run | Yrd Mat Sub Maximum Alert Level . | . . . Low Security (%) 100 | 100 100 . Level 1 . | . . . Level 2 . | . . . Level 3 . | . . . Level 4 . | . . . Level 5 . | . . . High Security . | . . . Max Security . | . . . Peak Influence 94 | 10 94 . Initial . | . . . Average 34 | 1 38 . Influence Increases 509 | 20 489 . Destroy 0b10 Robot/C 320 | . 320 . Destroy 0b10 Robot/NC 35 | 20 15 . Destroy Leader 64 | . 64 . Successful Hack 10 | . 10 . Select Force Hacks 30 | . 30 . Disable Machine 15 | . 15 . Destroy Structure 5 | . 5 . Partial Spotted 15 | . 15 . Lose Combat Pursuer 15 | . 15 . Influence Decreases 509 | 20 459 30 Entered New Map 15 | . . 15 Time Decay 444 | 20 409 15 Lost Part 50 | . 50 . Squads Dispatched 4 | . 4 . Investigation 2 | . 2 . Extermination . | . . . Reinforcement 2 | . 2 . Assault . | . . . Garrison . | . . . Intercept . | . . . Searches Triggered . | . . . Construction Impeded . | . . . Haulers Reinforced . | . . . Active Scanning Responses . | . . . Cargo Convoy Interrupts . | . . . Stealth | -11 -10 -10 --------- Run | Yrd Mat Sub Distress Signals 1 | . 1 . Communications Jammed . | . . . Distress Signals . | . . . Times Spotted 36 | . 29 7 Peak Tracking Total 5 | . 5 2 Tactical Retreats 1 | . 1 . Traps | -11 -10 -10 ------- Run | Yrd Mat Sub Traps Triggered 1 | . 1 . Indirectly . | . . . Trap Hack Attempts . | . . . Triggered . | . . . Disarmed . | . . . Reprogrammed . | . . . Reused . | . . . Traps Extracted . | . . . Installed . | . . . Triggered . | . . . Machines | -11 -10 -10 ---------- Run | Yrd Mat Sub Machines Disabled 1 | . 1 . Max in Single Turn 1 | . 1 . Machines Repaired . | . . . Machines Dismantled . | . . . Machines Sabotaged . | . . . Overloaded Fab Kills . | . . . Hacking | -11 -10 -10 --------- Run | Yrd Mat Sub Machines Accessed 5 | . 5 . Terminals 3 | . 3 . Fabricators . | . . . Repair Stations . | . . . Recycling Units 2 | . 2 . Scanalyzers . | . . . Garrison Access . | . . . Total Hacks 14 | . 14 . Successful 9 | . 9 . Failed 5 | . 5 . Catastrophic . | . . . Database Lockouts . | . . . Manual 18 | . 18 . Terminals 10 | . 10 . Fabricators . | . . . Repair Stations . | . . . Recycling Units 4 | . 4 . Scanalyzers . | . . . Garrison Access . | . . . Terminal Hacks 2 | . 2 . Locate Traps 1 | . 1 . Registered Components 1 | . 1 . Fabricator Hacks . | . . . Repair Station Hacks . | . . . Recycling Unit Hacks 2 | . 2 . Process 1 | . 1 . Report Inventory 1 | . 1 . Scanalyzer . | . . . Garrison Access Hacks . | . . . Unauthorized Hacks 5 | . 5 . Terminals 4 | . 4 . Track 2 | . 2 . Botnet 2 | . 2 . Fabricators . | . . . Repair Stations . | . . . Recycling Units 1 | . 1 . Tunnel 1 | . 1 . Scanalyzers . | . . . Garrison Access . | . . . Data Cores Recovered . | . . . Used . | . . . Hacking Detections 4 | . 4 . Full Trace Events 1 | . 1 . Feedback Events . | . . . Feedback Blocked . | . . . Robot Schematics Acquired . | . . . Robots Built . | . . . Authchips . | . . . Time . | . . . Total Robot Build Rating . | . . . Part Schematics Acquired . | . . . Parts Built . | . . . Authchips . | . . . Time . | . . . Total Part Build Rating . | . . . Part Studies Acquired . | . . . Parts Repaired . | . . . Time . | . . . Parts Recycled . | . . . Recycled Matter 206 | . 206 . Retrieved Matter . | . . . Retrieved Components . | . . . Parts Scanalyzed . | . . . Part Schematics Acquired . | . . . Parts Damaged . | . . . Bothacking | -11 -10 -10 ------------ Run | Yrd Mat Sub Used RIF Installer . | . . . Robots Hacked . | . . . Non-combat . | . . . Combat . | . . . Robot Hacks Applied . | . . . Relay Couplers Released . | . . . Fabnet Peak Effective % . | . . . Robots Rewired . | . . . Allies Hacked . | . . . Hacks Repelled . | . . . Allies | -11 -10 -10 -------- Run | Yrd Mat Sub Total Allies . | . . . Largest Group . | . . . Highest-Rated Group . | . . . Highest-Rated Ally . | . . . Total Orders . | . . . Ally Attacks . | . . . Total Damage . | . . . Kills . | . . . Allies Corrupted . | . . . Allies Melted . | . . . Intel | -11 -10 -10 ------- Run | Yrd Mat Sub Active Infowar (turns) 648 | 28 620 . Structural 106 | . 106 . Seismic 542 | 28 514 . Robot Analysis Total . | . . . Derelict Logs Recovered . | . . . Drone Launches . | . . . Drone Recoveries . | . . . Exploration | -11 -10 -10 ------------- Run | Yrd Mat Sub Turns Passed 2059 | 152 1122 785 Spaces Moved 1082 | 112 607 363 Core 56 | 3 . 53 Treads 533 | 23 297 213 Legs . | . . . Wheels 493 | 86 310 97 Hover . | . . . Flight . | . . . Fastest Speed 50 | 50 110 50 Average Speed 153 | 102 137 194 Slowest Speed 400 | 160 240 400 Overloaded Moves . | . . . Propulsion Burnouts . | . . . Robots Hopped . | . . . Potential Cave-ins . | . . . Cave-ins Triggered . | . . . Exploration Rate (%) 35 | 3 72 32 Regions Visited 2 Branch Regions 1 Pre-discovered Areas 1 | . 1 . Known Exits Taken 1 | . 1 . Unknown Exits Taken 1 | 1 . . Scrap Searched . | . . . Spaces Dug 2 | . 2 . Terrain Destroyed 16 | . 2 14 Melee 2 | . 2 . Projectile . | . . . AOE 14 | . . 14 Terrain Rammed . | . . . Walls Destroyed . | . . . Machines Disabled . | . . . Actions | -11 -10 -10 --------- Run | Yrd Mat Sub Total 1268 | 131 743 394 Wait 36 | . 36 . Move 1080 | 111 606 363 Hop . | . . . Pick Up 15 | 4 11 . Fast Attach 11 | 7 2 2 Attach 4 | . 2 2 Detach . | . . . Swap 10 | 2 6 2 Drop 1 | . 1 . Fire 108 | 7 76 25 Melee 3 | . 3 . Ram . | . . . Kick . | . . . Crush . | . . . Escape Stasis . | . . . Rewire . | . . . Trap . | . . . Miscellaneous . | . . . Route ------- -11/Scrapyard -10/Materials (discovered 5 exits: [*Mat x3] / [*Min] / *Sub) -10/Subcaves History --------- Turn | Location | Event 9 | -11/Scrapyard | Discovered new exit (range 15) 153 | -11/Scrapyard | Entered Materials 306 | -10/Materials | Build established: Mutant 517 | -10/Materials | Discovered new exit (range 16) 613 | -10/Materials | Discovered new exit (range 11) 942 | -10/Materials | Discovered new exit (range 10) 994 | -10/Materials | Discovered new exit (range 15) 1143 | -10/Materials | Discovered new exit (range 7) 1165 | -10/Materials | Core integrity fell below 50% 1273 | -10/Materials | Identified exit to Subcaves 1275 | -10/Materials | Entered Subcaves 1276 | -10/Subcaves | Approached by a straggling Scientist 1369 | -10/Subcaves | Core integrity fell below 20% 1431 | -10/Subcaves | Lost 4 parts (2n2w) 1710 | -10/Subcaves | Shifting Twisted Machinery released Mak. Light Armor Plating 1730 | -10/Subcaves | Shifting Twisted Machinery released Sub. Machine Gun 2037 | -10/Subcaves | Released all parts (5) 2060 | -10/Subcaves | Destroyed by XE-VBZ(R) with Subdweller Beam Cannon Last Messages --------------- SB-9WH(c): "I think it's somewhere southeast of here" 01736_ Discarded Signal Interpreter. 01736_ Acquired Mak. Light Armor Plating. 01760_ PV-X9G(u) tweaks Twisted Machinery. SB-9WH(c): "I think it's somewhere southeast of here" 01821_ PV-X9G(u) builds Twisted Machinery. SB-9WH(c): "I think it's somewhere southeast of here" 01839_ PV-X9G(u) tweaks Twisted Machinery. 01875_ ZP-YDP(R) Sub. Optics blasted off. 01875_ ZP-YDP(R) knocked back. 01884_ ZP-YDP(R) affixes Scrap Shield Fragment to Scrap Shield. 01890_ PV-X9G(u) builds Twisted Machinery. 01892_ ZP-YDP(R) destroyed. 01893_ PV-X9G(u) builds Twisted Machinery. 01901_ Subatomizers dissect the Disposable Heat Sink. 02037_ Released Battle Cannon. 02037_ Released Assault Rifle. 02037_ Released Lrg. Storage Unit. 02037_ Released Spk. Treads. 02037_ Released Mak. Light Armor Plating. Map ----- +----------------------------------------------------+ | ##???????????????????????# "" ##??????? | | #???????????????????????# """" ##?????? | | ####???????????????????????## " " " #?????? | | ##??????????????????????????##### " " ##????? | | #??????????????????????????????# """""" ##???? | | #?????????????????????????????## ## " #???? | | ##?????????????????????????????# ## #???? | | ##??????????????????????????????## " %#?????? | | ?????????????????????????????????## "" %"##?????? | | #??????????????????????????####?### %###??????? | | #??????????????????????????# ### ##????????? | | #??????????????????????????# ## ##????????? | | ???????????????????????????# ## ##???????? | | ??????????????????????????## ## #???????? | | ???????????????????????#### #??????? | | ???????????????????????# #### # %#?????? | | ??????????????????????## ##???## #### #????? | | ?????????????????????## #?????? #??# #???? | | ?????????????????????# #?????? #???# #??? | | ####????????????????## #?????? "#????? ??? | | ##??????????????## #???????##????????? | | """"#??????????????# ##?????????????????? | | """"#??????????????##### ####??????????????????? | | #???????????????????# ##????????????????????? | | ###?????????????????### ##???????????????????? | | ##???????????????????# @ #???????????????????? | | ?????????????????# #???????????????????? | | ???????????? R #??????????????????? | | ??????????? ""R ?????????????????? | | #?????????????"" # #### ???????????????? | | ""????????????#??## #????### #?????????????? | | """???????????????# #???????? #?????????????? | | ###???????????????# #?????????? #?????????????? | | #????????????????? ??????????? #?????????????? | | ?????????????????## ????????????? ????????????? | | ??????????????????##?????????????? #????????????? | | ?????????????????????????????????????????????????? | | ?????????????????????????????????????????????????? | | ?????????????????????????????????????????????????? | | ?????????????????????????????????????????????????? | | ?????????????????????????????????????????????????? | | ?????????????????????????????????????????????????? | | ?????????????????????????????????????????????????? | | ?????????????????????????????????????????????????? | | ?????????????????????????????????????????????????? | | ?????????????????????????????????????????????????? | | ?????????????????????????????????????????????????? | | ?????????????????????????????????????????????????? | | ?????????????????????????????????????????????????? | | ?????????????????????????????????????????????????? | +----------------------------------------------------+ Best States ------------- Heat Dissipation 25 Energy Generation 10 Energy Capacity 250 Matter Stores 257 Matter Capacity 300 Sight Range 16 Terrain Scan Density 10 Armor Coverage 100 Evasion (%) 50 Targeting Accuracy 5 Recoil Reduction 2 Item Schematics ----------------- None Robot Schematics ------------------ None Fabricated ------------ Nothing Repaired ---------- Nothing Studied --------- None Alien Tech Used ----------------- None Achievements -------------- None Challenges ------------ None Game ------ Seed SignalChainBeamcaster Manual? 0 Play Time 00:22:38 Cumulative 172.3 hours Start 2026.08.09 @ 14:11:17 End 2026.08.09 @ 14:48:24 Sessions 1 Manual Loads 0 Difficulty Rogue Special Mode None Game No. 188 Rogue 188 Adventurer 0 Explorer 0 Win Type - Total 0 Types 0/0/0/0/0/0/0/0/0/0 Lore% 58 Gallery% 46 Achievement% 33 Wizard Run 0 Options --------- Layout 0 ASCII 0 Keyboard 0 Movement Arrows Keybinds 0 Fullscreen 0 Font 16/SmallcapsGlow Map View 76x50 Zoom Use 0% Tactical HUD 1 Map Filters NONE Filters NONE Steam 1 RUN: f8385936-9254-4160-a0b0-c19eb9561f25